fUSD/lending_fUSD_20250618
["ID","MTS","AMOUNT","RATE_DAILY","PERIOD"]
[366414163,1750236649112,-891.39,0.00016438,2]
[366414164,1750236649122,-22193.42,0.00016438,2]
[366414165,1750236649132,-1007.31,0.00016438,2]
[366414166,1750236649142,-490.0,0.00016438,2]
[366414167,1750236649151,-1138.85,0.00016438,2]
[366414168,1750236649161,-1567.46,0.00016438,2]
[366414169,1750236649171,-490.0,0.00016438,2]
[366414170,1750236649182,-490.0,0.00016438,2]
[366414171,1750236649192,-1000.0,0.00016438,2]
[366414172,1750236649201,-490.0,0.00016438,2]
[366414173,1750236649212,-1313.96,0.00016438,2]
[366414174,1750236649222,-7401.52,0.00016438,2]
[366414175,1750236649232,-498.07020823,0.00016438,2]
[366414176,1750236649243,-497.48727219,0.00016438,2]
[366414177,1750236649253,-490.0,0.00016438,2]
[366414178,1750236649263,-490.0,0.00016438,2]
[366414179,1750236649274,-689.67,0.00016438,2]
[366414180,1750236649284,-1123.69,0.00016438,2]
[366414181,1750236649294,-1182.81,0.00016438,2]
[366414182,1750236649305,-490.0,0.00016438,2]
[366414183,1750236649315,-490.0,0.00016438,2]
[366414184,1750236649325,-1229.97,0.00016438,2]
[366414185,1750236649335,-490.0,0.00016438,2]
[366414186,1750236649345,-1328.66,0.00016438,2]
[366414187,1750236649355,-778.16,0.00016438,2]
[366414188,1750236649365,-7476.78,0.00016438,2]
[366414189,1750236649375,-5528.84,0.00016438,2]
[366414190,1750236649385,-490.0,0.00016438,2]
[366414191,1750236649395,-1304.55,0.00016438,2]
[366414192,1750236649406,-490.0,0.00016438,2]
[366414193,1750236649416,-1183.76,0.00016438,2]
[366414194,1750236649426,-519.7,0.00016438,2]
[366414195,1750236649435,-3938.97,0.00016438,2]
[366414196,1750236649445,-1023.77,0.00016438,2]
[366414197,1750236649454,-498.80080381,0.00016438,2]
[366414198,1750236649464,-490.0,0.00016438,2]
[366414199,1750236649473,-490.0,0.00016438,2]
[366414200,1750236649483,-490.0,0.00016438,2]
[366414201,1750236649493,-593.56,0.00016438,2]
[366414202,1750236649503,-490.0,0.00016438,2]
[366414203,1750236649512,-490.0,0.00016438,2]
[366414204,1750236649523,-490.0,0.00016438,2]
[366414205,1750236649533,-490.0,0.00016438,2]
[366414206,1750236649615,-490.0,0.00016438,2]
[366414207,1750236649625,-490.0,0.00016438,2]
[366414208,1750236649634,-771.33,0.00016438,2]
[366414209,1750236649644,-490.0,0.00016438,2]
[366414210,1750236649655,-490.0,0.00016438,2]
[366414211,1750236649665,-7789.72,0.00016438,2]
[366414212,1750236649675,-490.0,0.00016438,2]
[366414213,1750236649684,-490.34521875,0.00016438,2]
[366414214,1750236649694,-18364.5,0.00016438,2]
[366414215,1750236649703,-3566.24,0.00016438,2]
[366414216,1750236649712,-333.29519431,0.00016438,2]
[366414217,1750236649722,-1916.43,0.00016438,2]
[366414218,1750236649731,-490.0,0.00016438,2]
[366414219,1750236649741,-496.52,0.00016438,2]
[366414220,1750236649750,-499.0,0.00016438,2]
[366414221,1750236649760,-499.26,0.00016438,2]
[366414222,1750236649770,-304.5,0.00016438,2]
[366414223,1750236649779,-800.0,0.000165,6]
[366414224,1750236649789,-1500.0,0.00016502,2]
[366414225,1750236649798,-162.74938912,0.00016502,2]
[366414226,1750236649807,-151.72749855,0.00016503,2]
[366414227,1750236649817,-1020.0,0.00016506,2]
[366414228,1750236649826,-1348.62480725,0.00016521,2]
[366414229,1750236649835,-2580.62691564,0.00016521,2]
[366414230,1750236649844,-262.0,0.00016528,2]
[366414231,1750236649853,-167.7549197,0.00016585,2]
[366414232,1750236649862,-151.72749855,0.00016585,2]
[366414233,1750236649871,-1245.0,0.00016585,2]
[366414234,1750236649881,-3235.40130739,0.000166,2]
[366414235,1750236650401,-1764.59869261,0.000166,2]
[366414236,1750236650411,-155.22345726,0.000166,6]
[366414237,1750236651197,-282.78234949,0.00016438,2]
[366414238,1750236651306,-217.45765051,0.00016438,2]
[366414239,1750236651316,-102.26028947,0.00016438,2]
[366414250,1750236791566,201.0,0.00012657,2]
[366414251,1750236893106,1556.0,0.0002465,120]
[366414252,1750236893410,1559.0,0.0002465,120]
[366414253,1750236894232,886.0,0.0002465,120]
[366414255,1750236914725,290.0,0.00018,30]
[366414267,1750237169568,400.0,0.00024657,120]
[366414295,1750237831679,-205.0,0.00013602,2]
[366414296,1750237831690,-203.0,0.00013602,2]
[366414297,1750237831700,-150.45,0.00013699,2]
[366414298,1750237831710,-1000.0,0.00014914,2]
[366414299,1750237831719,-220.15084195,0.00014914,2]
[366414300,1750237831786,-664.26915805,0.00014914,2]
[366414301,1750237831796,-150.0,0.00014918,2]
[366414302,1750237831806,-150.0,0.00014918,2]
[366414303,1750237831815,-275.11,0.00014927,2]
[366414304,1750237831825,-157.19,0.00015386,2]
[366414305,1750237831835,-157.19,0.00015391,2]
[366414306,1750237831845,-157.19,0.00015395,2]
[366414307,1750237831854,-157.19,0.000154,2]
[366414308,1750237831864,-157.19,0.00015404,2]
[366414309,1750237831874,-157.19,0.00015409,2]
[366414310,1750237831884,-157.19,0.00015413,2]
[366414311,1750237831894,-157.19,0.00015418,2]
[366414312,1750237831903,-157.19,0.00015422,2]
[366414313,1750237831914,-157.19,0.00015427,2]
[366414314,1750237831923,-157.19,0.00015431,2]
[366414315,1750237831933,-77.87075801,0.00015436,2]
[366414316,1750237831945,-79.31924199,0.00015436,2]
[366414317,1750237831955,-157.19,0.00015441,2]
[366414318,1750237831965,-157.19,0.00015445,2]
[366414319,1750237831975,-157.19,0.0001545,2]
[366414320,1750237831985,-466.27582432,0.00015453,2]
[366414321,1750237831995,-157.19,0.00015454,2]
[366414323,1750237832004,-157.19,0.00015459,2]
[366414325,1750237832014,-200.0,0.00015463,7]
[366414327,1750237832023,-1200.0,0.00015463,2]
[366414329,1750237832032,-157.19,0.00015463,2]
[366414331,1750237832042,-300.0,0.00015495,2]
[366414333,1750237832051,-813.64,0.00015495,2]
[366414335,1750237832060,-500.0,0.00015554,2]
[366414337,1750237832070,-500.0,0.00015554,2]
[366414339,1750237832079,-205.0,0.00015711,4]
[366414341,1750237832090,-150.0,0.00015747,2]
[366414342,1750237832099,-300.0,0.00015747,2]
[366414344,1750237832109,-407.7,0.00015753,2]
[366414346,1750237832119,-170.87,0.00015878,2]
[366414348,1750237832130,-154.02257115,0.00015878,2]
[366414350,1750237832143,-301.29742885,0.00015878,2]
[366414361,1750237832241,-68.74279739,0.00015878,2]
[366414364,1750237832254,-102.12720261,0.00015878,2]
[366414366,1750237832264,-210.00769525,0.00015878,2]
[366414369,1750237832276,-955.00230475,0.00015878,2]
[366414371,1750237832286,-150.0,0.00015878,2]
[366414373,1750237832295,-150.0,0.00015878,2]
[366414375,1750237832305,-1165.01,0.00015878,2]
[366414377,1750237832314,-301.27967417,0.00015878,2]
[366414379,1750237832326,-154.04032583,0.00015878,2]
[366414381,1750237832335,-170.87,0.00015878,2]
[366414383,1750237832345,-150.0,0.00015878,2]
[366414386,1750237832355,-150.0,0.00015878,2]
[366414388,1750237832365,-1165.01,0.00015878,2]
[366414390,1750237832375,-150.0,0.00015878,2]
[366414391,1750237832385,-455.32,0.00015878,2]
[366414392,1750237832395,-150.0,0.00015878,2]
[366414394,1750237832404,-170.87,0.00015878,2]
[366414395,1750237832414,-162.66,0.0001589,2]
[366414397,1750237832424,-150.0,0.0001589,2]
[366414398,1750237832434,-331.15,0.0001589,2]
[366414399,1750237832444,-455.32,0.0001589,2]
[366414400,1750237832455,-150.0,0.0001589,2]
[366414401,1750237832465,-2328.26,0.0001589,2]
[366414403,1750237832475,-301.02,0.0001589,2]
[366414404,1750237832485,-150.0,0.0001589,2]
[366414405,1750237832495,-455.32,0.0001589,2]
[366414406,1750237832505,-150.0,0.0001589,2]
[366414407,1750237832515,-150.0,0.0001589,2]
[366414408,1750237832524,-300.0,0.000159,5]
[366414409,1750237832534,-1693.43637193,0.000159,2]
[366414410,1750237832545,-250.0,0.00015984,2]
[366414411,1750237832556,-163.5,0.00016,2]
[366414412,1750237832566,-165.42,0.00016004,2]
[366414413,1750237832576,-1693.43637189,0.00016038,2]
[366414414,1750237832586,-838.57346136,0.00016051,2]
[366414415,1750237832596,-150.0,0.00016052,2]
[366414416,1750237832606,-1957.856,0.0001609,2]
[366414417,1750237832615,-207.4,0.0001609,2]
[366414418,1750237832625,-168.0,0.00016093,2]
[366414419,1750237832635,-797.62,0.000161,2]
[366414420,1750237832644,-1165.01,0.000161,2]
[366414421,1750237832655,-354.86,0.000161,2]
[366414422,1750237832666,-163.5,0.000161,2]
[366414423,1750237832675,-1165.01,0.000161,2]
[366414424,1750237832685,-163.5,0.000161,2]
[366414425,1750237832695,-354.86,0.0001611,2]
[366414426,1750237832706,-1164.59,0.0001611,2]
[366414427,1750237832715,-163.42,0.0001611,2]
[366414428,1750237832726,-2030.296672,0.00016145,2]
[366414429,1750237832736,-1693.43637189,0.00016176,2]
[366414430,1750237832745,-2105.41764886,0.000162,2]
[366414431,1750237832755,-2183.31810187,0.00016255,2]
[366414432,1750237832765,-2264.10087164,0.0001631,2]
[366414433,1750237832775,-1693.43637189,0.00016314,2]
[366414434,1750237832785,-7420.39914548,0.00016328,2]
[366414436,1750237832794,-625.0,0.00016337,2]
[366414438,1750237832804,-28038.57703262,0.00016338,2]
[366414440,1750237832816,-533.64022597,0.00016338,2]
[366414442,1750237832832,-2125.93913558,0.00016338,2]
[366414444,1750237832853,-1459.70783706,0.00016338,2]
[366414446,1750237837601,-545.89964758,0.00016338,2]
[366414447,1750237837655,-2006.91026465,0.00016338,2]
[366414448,1750237837667,-756.50076464,0.00016338,2]
[366414449,1750237837709,-770.79047984,0.00016338,2]
[366414450,1750237837763,-1716203.71492206,0.00016338,2]
[366414451,1750237837773,-1228.19883367,0.00016338,2]
[366414452,1750237837783,-151.72749855,0.00016338,2]
[366414453,1750237837792,-214.39860607,0.00016338,2]
[366414454,1750237837802,-625.0,0.00016338,2]
[366414455,1750237837811,-5000.0,0.00016338,2]
[366414456,1750237837821,-2347.87260389,0.00016365,2]
[366414457,1750237837830,-700.0,0.000164,5]
[366414458,1750237837841,-1228.19883366,0.00016411,2]
[366414459,1750237837851,-3171.30005737,0.00016418,2]
[366414460,1750237837860,-1415.22202782,0.0001642,2]
[366414461,1750237837870,-151.0,0.00016428,2]
[366414462,1750237837879,-151.0,0.00016428,2]
[366414463,1750237837890,-153.05073523,0.00016428,2]
[366414464,1750237837900,-700.0,0.00016428,2]
[366414465,1750237837909,-700.0,0.00016428,2]
[366414466,1750237837918,-668.65185757,0.00016428,2]
[366414468,1750237837928,-500.0,0.00016428,2]
[366414470,1750237837937,-500.0,0.00016428,2]
[366414472,1750237837946,-500.0,0.00016428,2]
[366414474,1750237837955,-500.0,0.00016428,2]
[366414476,1750237837965,-1000.0,0.00016428,2]
[366414478,1750237837976,-310.41814798,0.00016428,2]
[366414480,1750237837985,-1000.0,0.00016428,2]
[366414482,1750237837995,-1000.0,0.00016428,2]
[366414484,1750237838004,-1000.0,0.00016428,2]
[366414486,1750237838013,-1097.60974713,0.00016428,2]
[366414488,1750237838023,-500.0,0.00016437,2]
[366414490,1750237838032,-159.66544717,0.00016437,2]
[366414492,1750237838042,-500.0,0.00016437,2]
[366414495,1750237838053,-483.85240885,0.00016437,2]
[366414497,1750237838063,-501.12357183,0.00016437,2]
[366414498,1750237838073,-502.18857201,0.00016437,2]
[366414499,1750237838083,-500.0,0.00016437,2]
[366414500,1750237838092,-500.0,0.00016437,2]
[366414501,1750237838102,-189.29543349,0.00016437,2]
[366414502,1750237838111,-184.78052013,0.00016437,2]
[366414503,1750237838121,-167.57667213,0.00016437,2]
[366414504,1750237838131,-183.36215089,0.00016437,2]
[366414505,1750237838140,-500.0,0.00016437,2]
[366414506,1750237838149,-500.0,0.00016437,2]
[366414507,1750237838159,-500.0,0.00016437,2]
[366414508,1750237838168,-647.36646775,0.00016437,2]
[366414510,1750237838178,-500.0,0.00016437,2]
[366414512,1750237838187,-167.30367049,0.00016437,2]
[366414514,1750237838202,-2886.192,0.00016437,2]
[366414515,1750237838212,-198.155,0.00016437,2]
[366414517,1750237838223,-11375.2489644,0.00016438,2]
[366414519,1750237838232,-369694.71113418,0.00016438,2]
[366414521,1750237838243,-490.0,0.00016438,2]
[366414523,1750237838252,-490.0,0.00016438,2]
[366414525,1750237838262,-490.0,0.00016438,2]
[366414527,1750237838272,-598.39180728,0.00016438,2]
[366414529,1750237838282,-490.0,0.00016438,2]
[366414531,1750237838291,-490.0,0.00016438,2]
[366414533,1750237838301,-490.0,0.00016438,2]
[366414535,1750237838310,-490.0,0.00016438,2]
[366414536,1750237838320,-490.0,0.00016438,2]
[366414538,1750237838330,-490.0,0.00016438,2]
[366414540,1750237838339,-681.49,0.00016438,2]
[366414542,1750237838349,-490.0,0.00016438,2]
[366414544,1750237838359,-490.0,0.00016438,2]
[366414546,1750237838368,-490.0,0.00016438,2]
[366414548,1750237838378,-638.58,0.00016438,2]
[366414550,1750237838388,-585.59,0.00016438,2]
[366414552,1750237838398,-490.0,0.00016438,2]
[366414554,1750237838407,-490.0,0.00016438,2]
[366414556,1750237838417,-710.23,0.00016438,2]
[366414558,1750237838426,-490.0,0.00016438,2]
[366414560,1750237838436,-589.8,0.00016438,2]
[366414562,1750237838446,-490.0,0.00016438,2]
[366414564,1750237838455,-490.0,0.00016438,2]
[366414566,1750237838465,-699.22,0.00016438,2]
[366414568,1750237838475,-492.89066206,0.00016438,2]
[366414570,1750237838484,-490.0,0.00016438,2]
[366414572,1750237838493,-490.0,0.00016438,2]
[366414574,1750237838502,-560.05,0.00016438,2]
[366414576,1750237838512,-539.68,0.00016438,2]
[366414578,1750237838521,-797.8,0.00016438,2]
[366414580,1750237838531,-490.0,0.00016438,2]
[366414582,1750237838540,-490.0,0.00016438,2]
[366414584,1750237838549,-493.67045002,0.00016438,2]
[366414586,1750237838558,-1373.23,0.00016438,2]
[366414587,1750237838568,-555.21434392,0.00016438,2]
[366414589,1750237838578,-490.0,0.00016438,2]
[366414591,1750237838587,-973.68,0.00016438,2]
[366414593,1750237838597,-490.0,0.00016438,2]
[366414595,1750237838607,-496.54240382,0.00016438,2]
[366414597,1750237838616,-490.0,0.00016438,2]
[366414599,1750237838626,-490.0,0.00016438,2]
[366414601,1750237838635,-490.0,0.00016438,2]
[366414603,1750237838645,-490.0,0.00016438,2]
[366414605,1750237838655,-490.0,0.00016438,2]
[366414607,1750237838664,-490.0,0.00016438,2]
[366414609,1750237838674,-1400.83,0.00016438,2]
[366414611,1750237838684,-490.0,0.00016438,2]
[366414613,1750237838693,-490.0,0.00016438,2]
[366414615,1750237838702,-557.16449886,0.00016438,2]
[366414617,1750237838712,-517.78582032,0.00016438,2]
[366414619,1750237838721,-490.0,0.00016438,2]
[366414621,1750237838730,-490.0,0.00016438,2]
[366414623,1750237838739,-496.4854262,0.00016438,2]
[366414625,1750237838749,-490.0,0.00016438,2]
[366414627,1750237838758,-490.0,0.00016438,2]
[366414629,1750237838767,-490.0,0.00016438,2]
[366414631,1750237838776,-490.0,0.00016438,2]
[366414633,1750237838786,-490.0,0.00016438,2]
[366414635,1750237838795,-495.82507103,0.00016438,2]
[366414637,1750237838804,-490.0,0.00016438,2]
[366414639,1750237838813,-686.35,0.00016438,2]
[366414641,1750237838823,-493.66078464,0.00016438,2]
[366414643,1750237838832,-490.0,0.00016438,2]
[366414645,1750237838841,-490.0,0.00016438,2]
[366414647,1750237838850,-490.0,0.00016438,2]
[366414649,1750237838860,-490.0,0.00016438,2]
[366414651,1750237838869,-490.0,0.00016438,2]
[366414653,1750237838878,-491.5898332,0.00016438,2]
[366414655,1750237838888,-556.22,0.00016438,2]
[366414657,1750237838898,-612.38033996,0.00016438,2]
[366414659,1750237838907,-490.0,0.00016438,2]
[366414661,1750237838916,-490.0,0.00016438,2]
[366414663,1750237838926,-490.0,0.00016438,2]
[366414664,1750237838935,-490.0,0.00016438,2]
[366414666,1750237838945,-490.0,0.00016438,2]
[366414668,1750237838954,-490.0,0.00016438,2]
[366414685,1750237838964,-734.24,0.00016438,2]
[366414690,1750237839145,-490.0,0.00016438,2]
[366414692,1750237839155,-401.63317085,0.00016438,2]
[366414694,1750237839164,-490.0,0.00016438,2]
[366414696,1750237839177,-490.0,0.00016438,2]
[366414698,1750237839186,-490.0,0.00016438,2]
[366414700,1750237839199,-490.0,0.00016438,2]
[366414702,1750237839209,-490.0,0.00016438,2]
[366414704,1750237839219,-490.0,0.00016438,2]
[366414706,1750237839229,-490.0,0.00016438,2]
[366414708,1750237839239,-490.0,0.00016438,2]
[366414710,1750237839248,-994.68,0.00016438,2]
[366414712,1750237839257,-490.0,0.00016438,2]
[366414714,1750237839267,-490.0,0.00016438,2]
[366414716,1750237839276,-490.0,0.00016438,2]
[366414718,1750237839286,-490.0,0.00016438,2]
[366414720,1750237839295,-557.31,0.00016438,2]
[366414722,1750237839304,-490.0,0.00016438,2]
[366414724,1750237839314,-490.0,0.00016438,2]
[366414726,1750237839323,-490.0,0.00016438,2]
[366414728,1750237839333,-881.57,0.00016438,2]
[366414730,1750237839342,-490.0,0.00016438,2]
[366414732,1750237839356,-637.55,0.00016438,2]
[366414734,1750237839365,-349.32403921,0.00016438,2]
[366414736,1750237839374,-490.0,0.00016438,2]
[366414738,1750237839384,-535.75,0.00016438,2]
[366414739,1750237839394,-461.39569436,0.00016438,2]
[366414741,1750237839403,-490.0,0.00016438,2]
[366414743,1750237839413,-490.0,0.00016438,2]
[366414745,1750237839423,-828.47,0.00016438,2]
[366414747,1750237839433,-490.0,0.00016438,2]
[366414749,1750237839442,-1737.52,0.00016438,2]
[366414751,1750237839452,-490.0,0.00016438,2]
[366414753,1750237839461,-972.47,0.00016438,2]
[366414756,1750237839471,-490.0,0.00016438,2]
[366414758,1750237839481,-490.0,0.00016438,2]
[366414760,1750237839491,-490.0,0.00016438,2]
[366414762,1750237839501,-490.0,0.00016438,2]
[366414764,1750237839510,-604.64,0.00016438,2]
[366414766,1750237839521,-490.0,0.00016438,2]
[366414768,1750237839530,-1236.89,0.00016438,2]
[366414770,1750237839540,-490.0,0.00016438,2]
[366414772,1750237839549,-490.0,0.00016438,2]
[366414774,1750237839559,-490.0,0.00016438,2]
[366414776,1750237839569,-500.38105824,0.00016438,2]
[366414778,1750237839579,-490.0,0.00016438,2]
[366414780,1750237839589,-490.0,0.00016438,2]
[366414782,1750237839599,-490.0,0.00016438,2]
[366414784,1750237839609,-1133.96,0.00016438,2]
[366414786,1750237839620,-713.45,0.00016438,2]
[366414788,1750237839629,-490.0,0.00016438,2]
[366414790,1750237839639,-561.43,0.00016438,2]
[366414792,1750237839648,-490.0,0.00016438,2]
[366414794,1750237839658,-1154.86,0.00016438,2]
[366414796,1750237839668,-471.84794786,0.00016438,2]
[366414798,1750237839677,-490.0,0.00016438,2]
[366414800,1750237839687,-490.0,0.00016438,2]
[366414802,1750237839697,-490.0,0.00016438,2]
[366414804,1750237839706,-503.1,0.00016438,2]
[366414806,1750237839716,-490.0,0.00016438,2]
[366414808,1750237839726,-490.0,0.00016438,2]
[366414810,1750237839737,-490.0,0.00016438,2]
[366414812,1750237839748,-1090.79,0.00016438,2]
[366414814,1750237839766,-1427.85,0.00016438,2]
[366414816,1750237839776,-490.0,0.00016438,2]
[366414818,1750237839787,-490.0,0.00016438,2]
[366414820,1750237839797,-300.0,0.00016438,2]
[366414822,1750237839807,-490.0,0.00016438,2]
[366414824,1750237839818,-490.0,0.00016438,2]
[366414826,1750237839828,-577.69,0.00016438,2]
[366414828,1750237839838,-543.7,0.00016438,2]
[366414830,1750237839848,-490.0,0.00016438,2]
[366414832,1750237839858,-764.34,0.00016438,2]
[366414834,1750237839868,-1172.85,0.00016438,2]
[366414836,1750237839879,-490.0,0.00016438,2]
[366414839,1750237839889,-490.0,0.00016438,2]
[366414841,1750237839899,-537.37,0.00016438,2]
[366414843,1750237839908,-492.03968214,0.00016438,2]
[366414845,1750237839917,-298.07663356,0.00016438,2]
[366414847,1750237839928,-1034.43,0.00016438,2]
[366414849,1750237839938,-490.0,0.00016438,2]
[366414850,1750237839947,-700.76,0.00016438,2]
[366414853,1750237839957,-1595.61,0.00016438,2]
[366414854,1750237839966,-490.0,0.00016438,2]
[366414857,1750237839977,-587.65,0.00016438,2]
[366414859,1750237839987,-490.0,0.00016438,2]
[366414861,1750237839997,-490.0,0.00016438,2]
[366414863,1750237840007,-743.89,0.00016438,2]
[366414865,1750237840016,-657.49,0.00016438,2]
[366414867,1750237840026,-490.0,0.00016438,2]
[366414868,1750237840035,-490.0,0.00016438,2]
[366414870,1750237840045,-490.0,0.00016438,2]
[366414873,1750237840055,-490.0,0.00016438,2]
[366414875,1750237840065,-250.0,0.00016438,2]
[366414877,1750237840075,-490.0,0.00016438,2]
[366414879,1750237840084,-790.6,0.00016438,2]
[366414881,1750237840094,-490.0,0.00016438,2]
[366414883,1750237840104,-1273.69,0.00016438,2]
[366414885,1750237840114,-1093.49,0.00016438,2]
[366414887,1750237840124,-699.73,0.00016438,2]
[366414889,1750237840135,-490.0,0.00016438,2]
[366414891,1750237840144,-490.0,0.00016438,2]
[366414893,1750237840154,-676.07,0.00016438,2]
[366414895,1750237840164,-747.63,0.00016438,2]
[366414897,1750237840174,-658.85,0.00016438,2]
[366414899,1750237840184,-1085.42,0.00016438,2]
[366414901,1750237840197,-490.0,0.00016438,2]
[366414902,1750237840206,-490.0,0.00016438,2]
[366414904,1750237840217,-869.01,0.00016438,2]
[366414906,1750237840227,-776.64,0.00016438,2]
[366414908,1750237840239,-1281.89,0.00016438,2]
[366414910,1750237840249,-490.0,0.00016438,2]
[366414912,1750237840259,-490.0,0.00016438,2]
[366414914,1750237840270,-490.0,0.00016438,2]
[366414917,1750237840281,-490.0,0.00016438,2]
[366414918,1750237840290,-493.42,0.00016438,2]
[366414921,1750237840301,-496.83,0.00016438,2]
[366414923,1750237840312,-490.0,0.00016438,2]
[366414925,1750237840322,-490.0,0.00016438,2]
[366414927,1750237840332,-491.25,0.00016438,2]
[366414930,1750237840342,-1894.73,0.00016438,2]
[366414931,1750237840351,-490.0,0.00016438,2]
[366414934,1750237840362,-885.39,0.00016438,2]
[366414936,1750237840372,-490.0,0.00016438,2]
[366414938,1750237840381,-490.0,0.00016438,2]
[366414940,1750237840391,-490.0,0.00016438,2]
[366414942,1750237840401,-490.0,0.00016438,2]
[366414944,1750237840410,-490.0,0.00016438,2]
[366414946,1750237840420,-1533.94,0.00016438,2]
[366414948,1750237840430,-490.0,0.00016438,2]
[366414950,1750237840440,-512.91,0.00016438,2]
[366414952,1750237840449,-490.0,0.00016438,2]
[366414954,1750237840460,-1380.97,0.00016438,2]
[366414956,1750237840470,-490.0,0.00016438,2]
[366414958,1750237840480,-1270.61,0.00016438,2]
[366414960,1750237840491,-801.07,0.00016438,2]
[366414962,1750237840501,-504.11665116,0.00016438,2]
[366414964,1750237840511,-490.0,0.00016438,2]
[366414966,1750237840521,-490.0,0.00016438,2]
[366414967,1750237840531,-744.94,0.00016438,2]
[366414968,1750237840541,-490.0,0.00016438,2]
[366414969,1750237840552,-490.0,0.00016438,2]
[366414970,1750237840561,-1098.8,0.00016438,2]
[366414971,1750237840571,-490.0,0.00016438,2]
[366414972,1750237840581,-490.0,0.00016438,2]
[366414973,1750237840590,-490.0,0.00016438,2]
[366414974,1750237840600,-1334.0,0.00016438,2]
[366414975,1750237840610,-490.0,0.00016438,2]
[366414976,1750237840620,-490.0,0.00016438,2]
[366414977,1750237840630,-589.03,0.00016438,2]
[366414978,1750237840639,-752.22,0.00016438,2]
[366414979,1750237840650,-490.0,0.00016438,2]
[366414981,1750237840659,-920.5,0.00016438,2]
[366414983,1750237840670,-490.0,0.00016438,2]
[366414986,1750237840680,-585.96,0.00016438,2]
[366414988,1750237840690,-876.92,0.00016438,2]
[366414990,1750237840699,-490.0,0.00016438,2]
[366414992,1750237840709,-1344.16,0.00016438,2]
[366414994,1750237840719,-490.0,0.00016438,2]
[366414996,1750237840729,-490.0,0.00016438,2]
[366414998,1750237840738,-885.54,0.00016438,2]
[366415000,1750237840749,-2018.39,0.00016438,2]
[366415002,1750237840759,-500.0,0.00016438,2]
[366415004,1750237840769,-1294.24,0.00016438,2]
[366415006,1750237840778,-490.0,0.00016438,2]
[366415008,1750237840788,-577.63,0.00016438,2]
[366415010,1750237840799,-632.8,0.00016438,2]
[366415012,1750237840809,-819.96,0.00016438,2]
[366415014,1750237840818,-490.0,0.00016438,2]
[366415016,1750237840830,-1140.32,0.00016438,2]
[366415018,1750237840840,-559.2072202,0.00016438,2]
[366415020,1750237840850,-490.0,0.00016438,2]
[366415022,1750237840860,-490.0,0.00016438,2]
[366415024,1750237840870,-490.0,0.00016438,2]
[366415027,1750237840880,-490.0,0.00016438,2]
[366415029,1750237840889,-1163.61,0.00016438,2]
[366415031,1750237840898,-490.0,0.00016438,2]
[366415033,1750237840908,-490.0,0.00016438,2]
[366415035,1750237840918,-490.0,0.00016438,2]
[366415037,1750237840928,-1226.37,0.00016438,2]
[366415039,1750237840937,-490.0,0.00016438,2]
[366415041,1750237840947,-490.0,0.00016438,2]
[366415043,1750237840957,-789.82,0.00016438,2]
[366415045,1750237840967,-642.38,0.00016438,2]
[366415047,1750237840976,-490.0,0.00016438,2]
[366415049,1750237840986,-592.7,0.00016438,2]